Cogmind - Beta 15 @@@ ROGUE MODE // 2025.09.14 @ 16:09:04 Player: BLINGO GOVLIN Result: Destroyed by Y-45 Defender with Beam Rifle Performance ------------- Evolutions (1) 500 Regions Visited (3) 600 Robots Destroyed (62) 310 Value Destroyed (1576) 1576 Prototype IDs (4) 80 Alien Tech Used (0) 0 Bonus (0) 0 TOTAL SCORE: 3066 Bonus ------- None Cogmind --------- Core Integrity 0/400 Matter 290/300 Energy 100/100 System Corruption 8% Temperature Cool (9) Movement Walking (130) Location -9/Storage Parts ------- > --- POWER (1) -------- (None) > --- PROPULSION (4) --- Titanium Leg > --- UTILITY (2) ------ Medium Storage Unit > --- WEAPON (2) ------- Mining Claw > --- INVENTORY (10) --- VTOL Module Faulty Improved Flight Unit Terrain Scanner Terrain Scan Processor Hacking Suite Hacking Suite Hacking Suite Rocket Launcher Peak State ------------ > --- POWER ------------ Improved Ion Engine > --- PROPULSION ------- Titanium Leg Titanium Leg Titanium Leg Titanium Leg > --- UTILITY ---------- Medium Storage Unit Light Armor Plating > --- WEAPON ----------- Heavy Assault Rifle Improved Assault Rifle > --- INVENTORY -------- VTOL Module Improved Flight Unit Terrain Scanner Hacking Suite Hacking Suite Beam Rifle Heavy Assault Rifle Grenade Launcher Rocket Launcher Mining Claw [Rating: 23] Favorites ----------- Power Improved Ion Engine Engine Improved Ion Engine Power Core Light Nuclear Core Propulsion Titanium Leg Treads Light Treads Leg Titanium Leg Flight Unit Improved Flight Unit Utility Medium Storage Unit Device Terrain Scanner Storage Medium Storage Unit Protection Light Armor Plating Weapon Improved Assault Rifle Energy Gun EM Pulse Gun Ballistic Gun Improved Assault Rifle Slashing Weapon Mining Claw Build | -11 -10 -9 -9 ------- Run | Yrd Mat Mat Sto Slots Evolved 2 | . . 2 . Power . | . . . . Propulsion 2 | . . 2 . Utility . | . . . . Weapon . | . . . . Parts Attached 41 | 5 12 21 3 Power 6 | 1 2 3 . Engine 5 | 1 1 3 . Core 1 | . 1 . . Reactor . | . . . . Propulsion 14 | 2 3 9 . Treads 2 | 2 . . . Leg 11 | . 3 8 . Wheel . | . . . . Hover . | . . . . Flight 1 | . . 1 . Utility 9 | . 3 5 1 Device 2 | . 1 1 . Storage 4 | . 2 2 . Processor . | . . . . Hackware . | . . . . Protection 3 | . . 2 1 Artifact . | . . . . Weapon 12 | 2 4 4 2 Energy Gun 1 | 1 . . . Energy Cannon . | . . . . Ballistic Gun 10 | 1 4 4 1 Ballistic Cannon . | . . . . Launcher . | . . . . Special Weapon . | . . . . Impact Weapon . | . . . . Slashing Weapon 1 | . . . 1 Piercing Weapon . | . . . . Special Melee Weapon . | . . . . Unidentified Prototypes 2 | . 1 1 . Parts Lost 19 | . 6 4 9 Power 2 | . 1 . 1 Propulsion 6 | . 2 1 3 Utility 4 | . 1 1 2 Weapon 7 | . 2 2 3 Highest Loss Streak 8 | . 4 2 8 To Critical Strikes . | . . . . Average Backups 8 | 1 6 9 9 Power . | . 1 . . Propulsion 1 | . . 1 2 Utility 2 | . 1 3 5 Weapon 3 | . 3 4 2 Tool/Special . | . . . . Unused Backups 12 | . 1 5 6 Power . | . . . . Propulsion 2 | . . 1 1 Utility 4 | . . . 4 Weapon 6 | . 1 4 1 Tool/Special . | . . . . Average Slot Usage (%) 88 | . 80 97 88 Engine 7 | . 4 11 9 Core 4 | . 9 . . Treads 10 | . 22 . . Leg 24 | . 5 42 41 Device 1 | . . 2 . Storage 9 | . 8 11 11 Protection 4 | . . 7 6 Energy Gun 1 | . 2 . . Ballistic Gun 23 | . 25 21 17 Peak Build Rating 23 | 5 12 23 22 Average Rating 14 | 3 8 19 19 On Entrance 9 | . 5 11 22 Naked Turns . | . . . . Heaviest Build 26 | 9 21 26 26 Greatest Support 68 | 40 40 68 68 Greatest Overweight (x) 6 | 2 6 . . Average Overweight (x) . | . . . . Largest Inventory Capacity 10 | 5 10 10 10 Average Capacity 8 | 5 7 10 10 Most Carried 10 | 3 10 10 10 Average Carried 8 | 1 6 9 9 Final Capacity 10 | 5 10 10 10 Final Carried 10 | 2 10 9 8 Class Distribution -------------------- 76% | Mutant 23% | Scavenger-Mutant Dominant Class ---------------- Mutant | -10/Materials Mutant | -9/Materials Scavenger-Mutant | -9/Storage Resources | -11 -10 -9 -9 ----------- Run | Yrd Mat Mat Sto Matter Collected 1687 | 220 413 842 212 Remotely . | . . . . Salvage Created 2265 | . 670 1243 352 Parts 155 | . 38 88 29 Haulers Intercepted 5 | . 1 4 . Recyclers Shooed . | . . . . Parts Field Recycled . | . . . . Retrieved Matter . | . . . . Parts Self-Destructed . | . . . . Prevented . | . . . . Kills | -11 -10 -9 -9 ------- Run | Yrd Mat Mat Sto Combat Hostiles Destroyed 47 | . 14 23 10 Guns 46 | . 13 23 10 AOE 1 | . 1 . . Classes Destroyed 9 | . 3 6 . Worker 1 | . . 1 . Builder 1 | . . 1 . Hauler 5 | . 1 4 . Recycler 2 | . . 2 . Operator 3 | . 1 2 . Watcher 3 | . . 3 . Swarmer 15 | . . 11 4 Grunt 23 | . 14 7 2 Sentry 9 | . . 5 4 Best Kill Streak 7 | . 4 7 5 Combat Bots Only 7 | . 4 7 5 Max Kills in Single Turn 1 | . 1 1 1 Gunslinging . | . . . . Exploded 1 | . 1 . . Melee . | . . . . Uniques/NPCs Destroyed . | . . . . Combat | -11 -10 -9 -9 -------- Run | Yrd Mat Mat Sto Hostile Shots Fired 361 | . 102 148 111 Missed 92 | . 27 39 26 Hits 269 | . 75 109 85 Projectile 269 | . 75 109 85 Critical Strikes 2 | . . 2 . Damage Taken 3341 | . 987 1226 1128 Core 586 | . 182 207 197 Absorbed by Shields . | . . . . Regen/Repaired (Parts) 83 | . . . 83 Core Remaining (%) 63 | 100 27 . . Volleys Fired 196 | . 64 93 39 Largest 2 | . 2 2 2 Hottest 60 | . 60 46 46 Shots Fired 377 | . 128 182 67 Gun 377 | . 128 182 67 Cannon . | . . . . Launcher . | . . . . Special . | . . . . Kinetic 367 | . 118 182 67 Thermal . | . . . . Explosive . | . . . . Electromagnetic 10 | . 10 . . Robot Hit Streak 16 | . 9 11 16 Robot Miss Streak 6 | . 6 5 2 Penetration Max . | . . . . Secondary Targets 6 | . 1 5 . Max Gunslinging Chain 1 | . 1 1 . Shots Hit Robots 258 | . 82 124 52 Core Hits 106 | . 38 51 17 Critical Kills . | . . . . Critical Parts Destroyed 1 | . 1 . . Critical Strikes 1 | . 1 . . Destroy 1 | . 1 . . Melee Attacks 8 | . . . 8 Impact . | . . . . Slashing 8 | . . . 8 Piercing . | . . . . Sneak Attacks . | . . . . Combat Hostiles . | . . . . Follow-up Attacks . | . . . . Damage Inflicted 3648 | . 1041 1850 757 Guns 3533 | . 1009 1837 687 Cannons . | . . . . Explosions 32 | . 32 . . Melee 69 | . . . 69 Ramming 14 | . . 13 1 Kinetic 3451 | . 927 1837 687 Thermal 32 | . 32 . . Explosive . | . . . . Electromagnetic 82 | . 82 . . Impact . | . . . . Slashing 69 | . . . 69 Piercing . | . . . . Highest Corruption 8 | . . 8 8 Average Corruption 6 | . . 5 8 Corruption Purged . | . . . . Corruption Blocked . | . . . . Effects 61 | . . 47 14 Message Errors 15 | . . 10 5 Matter Fused 12 | . . 10 2 Heat Flow Errors 8 | . . 6 2 Energy Discharges 4 | . . 3 1 Parts Rejected 2 | . . 1 1 Data Loss (minor) 8 | . . 7 1 Data Loss (major) 5 | . . 5 . Misfires 2 | . . 2 . Alerts 1 | . . 1 . Weapon Failures 4 | . . 2 2 Overload Shots . | . . . . Overflow Damage . | . . . . Projectiles . | . . . . Explosions . | . . . . Melee . | . . . . Knockbacks . | . . . . Impact . | . . . . Kinetic . | . . . . Secondary . | . . . . Self-Inflicted Damage 53 | . 53 . . Shots 1 | . 1 . . Rammed 1 | . 1 . . Targets Rammed 4 | . 1 2 1 Kicked 3 | . . 2 1 Crushed . | . . . . Highest Temperature 217 | . 22 217 183 Average Temperature 44 | . 7 70 35 Received Heat Transfer 1314 | . 525 393 396 Siege Activations . | . . . . Martial Activations . | . . . . Shielding Activations . | . . . . Robots Disrupted . | . . . . Combat Hostiles . | . . . . Robots Corrupted . | . . . . Combat Hostiles . | . . . . Parts Fried . | . . . . Impact Corruptions . | . . . . Robots Melted . | . . . . Combat Hostiles . | . . . . Parts Melted . | . . . . Heat Transferred 50 | . 50 . . Parts Sabotaged . | . . . . Parts Stolen . | . . . . Parts Stripped . | . . . . Power Chain Reactions 1 | . 1 . . Alert | -11 -10 -9 -9 ------- Run | Yrd Mat Mat Sto Maximum Alert Level 1 | . . 1 . Low Security (%) 99 | 100 100 98 100 Level 1 . | . . 1 . Level 2 . | . . . . Level 3 . | . . . . Level 4 . | . . . . Level 5 . | . . . . High Security . | . . . . Max Security . | . . . . Peak Influence 220 | . 102 220 152 Initial 29 | . . 29 17 Average 65 | . 23 108 93 Influence Increases 1568 | . 458 795 315 Destroy 0b10 Robot/C 940 | . 280 460 200 Destroy 0b10 Robot/NC 75 | . 10 65 . Destroy Leader 236 | . 52 134 50 Successful Hack 51 | . 32 16 3 Disable Machine 75 | . 45 15 15 Destroy Structure 11 | . 9 . 2 Lose Combat Pursuer 180 | . 30 105 45 Influence Decreases 1486 | . 387 824 275 Entered New Map 67 | . . 42 25 Time Decay 1082 | . 347 592 143 Lost Part 170 | . 40 40 90 Purge Threat 167 | . . 150 17 Squads Dispatched 6 | . 2 2 2 Investigation 2 | . 2 . . Extermination . | . . . . Reinforcement 4 | . . 2 2 Assault . | . . . . Garrison . | . . . . Intercept . | . . . . Searches Triggered . | . . . . Construction Impeded . | . . . . Haulers Reinforced . | . . . . Active Scanning Responses . | . . . . Cargo Convoy Interrupts . | . . . . Stealth | -11 -10 -9 -9 --------- Run | Yrd Mat Mat Sto Distress Signals 3 | . . 3 . Communications Jammed . | . . . . Distress Signals . | . . . . Times Spotted 103 | . 33 52 18 Peak Tracking Total 7 | . 7 7 6 Tactical Retreats 7 | . 2 3 2 Traps | -11 -10 -9 -9 ------- Run | Yrd Mat Mat Sto Traps Triggered 4 | . 2 2 . Indirectly . | . . . . Trap Hack Attempts . | . . . . Triggered . | . . . . Disarmed . | . . . . Reprogrammed . | . . . . Reused . | . . . . Traps Extracted . | . . . . Installed . | . . . . Triggered . | . . . . Machines | -11 -10 -9 -9 ---------- Run | Yrd Mat Mat Sto Machines Disabled 5 | . 3 1 1 Max in Single Turn 1 | . 1 1 1 Machines Repaired . | . . . . Machines Dismantled . | . . . . Machines Sabotaged . | . . . . Overloaded Fab Kills . | . . . . Hacking | -11 -10 -9 -9 --------- Run | Yrd Mat Mat Sto Machines Accessed 15 | . 6 6 3 Terminals 12 | . 6 4 2 Fabricators . | . . . . Repair Stations 1 | . . . 1 Recycling Units . | . . . . Scanalyzers 2 | . . 2 . Garrison Access . | . . . . Total Hacks 36 | . 14 17 5 Successful 20 | . 7 9 4 Failed 16 | . 7 8 1 Catastrophic 5 | . 3 2 . Database Lockouts . | . . . . Manual 18 | . 10 8 . Terminals 28 | . 14 11 3 Fabricators . | . . . . Repair Stations 2 | . . . 2 Recycling Units . | . . . . Scanalyzers 6 | . . 6 . Garrison Access . | . . . . Terminal Hacks 11 | . 5 4 2 Record 1 | . 1 . . Prototype ID Bank 2 | . 2 . . Open Door 1 | . . . 1 Branch Access Points 1 | . . 1 . Unreport Threat 2 | . . 1 1 Hauler Manifests 2 | . 1 1 . Registered Components 1 | . . 1 . Zone Layout 1 | . 1 . . Fabricator Hacks . | . . . . Repair Station Hacks 2 | . . . 2 Scan Component 1 | . . . 1 Repair 1 | . . . 1 Recycling Unit Hacks . | . . . . Scanalyzer 4 | . . 4 . Insert Component 2 | . . 2 . Analyze 2 | . . 2 . Garrison Access Hacks . | . . . . Unauthorized Hacks 3 | . 2 1 . Terminals 3 | . 2 1 . Assimilate 1 | . 1 . . Operators 2 | . 1 1 . Fabricators . | . . . . Repair Stations . | . . . . Recycling Units . | . . . . Scanalyzers . | . . . . Garrison Access . | . . . . Data Cores Recovered . | . . . . Used . | . . . . Hacking Detections 10 | . 5 4 1 Full Trace Events 1 | . 1 . . Feedback Events . | . . . . Feedback Blocked . | . . . . Robot Schematics Acquired . | . . . . Robots Built . | . . . . Authchips . | . . . . Time . | . . . . Total Robot Build Rating . | . . . . Part Schematics Acquired 2 | . . 2 . Parts Built . | . . . . Authchips . | . . . . Time . | . . . . Total Part Build Rating . | . . . . Parts Repaired 1 | . . . 1 Time 32 | . . . 32 Parts Recycled . | . . . . Recycled Matter . | . . . . Retrieved Matter . | . . . . Retrieved Components . | . . . . Parts Scanalyzed 2 | . . 2 . Part Schematics Acquired 2 | . . 2 . Parts Damaged . | . . . . Bothacking | -11 -10 -9 -9 ------------ Run | Yrd Mat Mat Sto Used RIF Installer . | . . . . Robots Hacked . | . . . . Non-combat . | . . . . Combat . | . . . . Robot Hacks Applied . | . . . . Relay Couplers Released . | . . . . Fabnet Peak Effective % . | . . . . Robots Rewired . | . . . . Allies Hacked . | . . . . Hacks Repelled . | . . . . Allies | -11 -10 -9 -9 -------- Run | Yrd Mat Mat Sto Total Allies . | . . . . Largest Group . | . . . . Highest-Rated Group . | . . . . Highest-Rated Ally . | . . . . Total Orders . | . . . . Ally Attacks . | . . . . Total Damage . | . . . . Kills . | . . . . Allies Corrupted . | . . . . Allies Melted . | . . . . Intel | -11 -10 -9 -9 ------- Run | Yrd Mat Mat Sto Active Infowar (turns) 484 | . 135 349 . Terrain 349 | . . 349 . Seismic 135 | . 135 . . Robot Analysis Total . | . . . . Derelict Logs Recovered . | . . . . Drone Launches . | . . . . Drone Recoveries . | . . . . Exploration | -11 -10 -9 -9 ------------- Run | Yrd Mat Mat Sto Turns Passed 4309 | 71 2021 1876 341 Spaces Moved 2331 | 47 1026 1145 113 Core 24 | 21 3 . . Treads 859 | 26 833 . . Legs 1448 | . 190 1145 113 Wheels . | . . . . Hover . | . . . . Flight . | . . . . Fastest Speed 50 | 50 120 120 130 Average Speed 142 | 128 161 127 130 Slowest Speed 350 | 160 350 130 130 Overloaded Moves . | . . . . Propulsion Burnouts . | . . . . Robots Hopped . | . . . . Potential Cave-ins . | . . . . Cave-ins Triggered . | . . . . Exploration Rate (%) 43 | 4 91 60 20 Regions Visited 3 Branch Regions 1 Pre-discovered Areas . | . . . . Known Exits Taken 1 | . . 1 . Unknown Exits Taken 2 | 1 1 . . Scrap Searched . | . . . . Spaces Dug . | . . . . Terrain Destroyed 5 | . 5 . . Melee . | . . . . Projectile . | . . . . AOE 5 | . 5 . . Terrain Rammed . | . . . . Walls Destroyed . | . . . . Machines Disabled . | . . . . Actions | -11 -10 -9 -9 --------- Run | Yrd Mat Mat Sto Total 2936 | 58 1271 1383 224 Wait 287 | . 145 88 54 Move 2328 | 46 1025 1144 113 Hop . | . . . . Pick Up 40 | 7 17 14 2 Fast Attach 8 | . 4 2 2 Attach 19 | 5 4 7 3 Detach . | . . . . Swap 22 | . 4 16 2 Drop 24 | . 7 17 . Fire 196 | . 64 93 39 Melee 8 | . . . 8 Ram . | . . . . Kick 3 | . . 2 1 Crush 1 | . 1 . . Escape Stasis . | . . . . Rewire . | . . . . Trap . | . . . . Miscellaneous . | . . . . Route ------- -11/Scrapyard -10/Materials (discovered 5 exits: *Mat x2 / [*Min x2] / [*Sub]) -9/Materials (discovered 3 exits: [*Mat] / Min / *Sto) -9/Storage History --------- Turn | Location | Event 2 | -11/Scrapyard | Met Revision 17 5 | -11/Scrapyard | Discovered new exit (range 16) 72 | -11/Scrapyard | Entered Materials 301 | -10/Materials | Build established: Mutant 1191 | -10/Materials | Discovered new exit (range 15) 1359 | -10/Materials | Discovered new exit (range 12) 1413 | -10/Materials | Discovered new exit (range 10) 1524 | -10/Materials | Discovered new exit (range 6) 1731 | -10/Materials | Core integrity fell below 50% 1770 | -10/Materials | Discovered new exit (range 7) 1783 | -10/Materials | Lost 4 parts (1p2n1u) 2093 | -10/Materials | Entered another Materials area 2093 | -9/Materials | Evolved 2 slots: Propulsion x2 2227 | -9/Materials | Destroyed 7 combat bots 2252 | -9/Materials | Discovered new exit (range 5) 2407 | -9/Materials | Build established: Scavenger-Mutant 2808 | -9/Materials | Discovered new exit (range 15) 2917 | -9/Materials | Build established: Mutant 3546 | -9/Materials | Core integrity fell below 50% 3675 | -9/Materials | Identified exit to Mines 3675 | -9/Materials | Identified exit to Storage 3969 | -9/Materials | Entered Storage 4014 | -9/Storage | Repaired Hvy. Assault Rifle 4266 | -9/Storage | Core integrity fell below 20% 4310 | -9/Storage | Destroyed by Y-45 Defender with Beam Rifle Last Messages --------------- 04266_ Acquired 50 matter. 04271_ Y-45 Defender destroyed. 04274_ G-34 Mercenary destroyed. 04277_ Acquired 18 matter. 04277_ K-01 Serf collects debris. 04281_ R-06 Scavenger collects Lgt. Armor Plating. 04282_ System corrupted: Hvy. Assault Rifle jammed. 04283_ Hvy. Assault Rifle destroyed. 04284_ R-06 Scavenger collects Imp. Ion Engine. 04285_ K-01 Serf collects debris. 04287_ System corrupted: Matter fused (-7). 04289_ Titanium Leg destroyed. 04298_ Lgt. Assault Rifle destroyed. 04301_ K-01 Serf collects debris. 04301_ R-06 Scavenger collects Lgt. Treads. 04304_ Titanium Leg destroyed. 04304_ R-06 Scavenger collects Beam Rifle. 04309_ IHAHL7IJBQT6OSDH&0QI/YWTTPMAD5=F:6X Map ----- +----------------------------------------------------+ | ????????????????????????????????????????????????? | | ????????????????????????????????????????????????? | | ????????????????????????????????????????????????? | | ????????????????????????????????????????????????? | | ????????????????????????????????????????????????? | | ????????????????????????????????????????????????? | | ????????????????????????????????????????????????? | | ????????????????????????????????????????????????? | | ????????????????????? ?????????????????????????? | | ????????????????????? ?????????????????????????? | | ????????????????????? ?????????????????????????? | | ????????????????????? #????????????????????????? | | ????????????????????# #????????????????????????? | | ???????????????????? #????????????????????????? | | ???????????????????? ????????????????????????? | | ????????????????????# #????????????????????????? | | ????????????????????# #????????????????????????? | | ????????????????????# #????????????????????????? | | ????????????????????+ #????????????????????????? | | ????????????????????# #????????????????????????? | | ?????????????# ????# #????????????????????????? | | ?????????????# ""??# #????????????????????????? | | ?????????????# """ # #????????????????????????? | | ?????????????# """ + a########+###?????????????? | | ?????????????+ # !kY% ! ]g] =#?????????????? | | ?????????????# ""??#####@u ]]] #?????????????? | | ?????????????# ????????#= l ]] #?????????????? | | ?????????????+??????????# #?#???????????? | | ??????????????????????#######+##### #???????????? | | ??????????????????????# + #???????????? | | ??????????????????????# = # ####???????????? | | ??????????????????????# [ # #??????????????? | | ??????????????????????# / +??????????????? | | ??????????????????????# # ####??????????????? | | ??????????????????????#[ !# #?????????????????? | | ??????????????????????# !# #?????????????????? | | ??????????????????????####### #?????????????????? | | ????????????????????????????# #?????????????????? | | ????????????????????????????# #?????????????????? | | ????????????????????????????# #?###?????????????? | | ????????????#####+########### ###T######????????? | | ??????????? =# #!!!!#????????? | | ??????????? !*+ #????????? | | ??????????? [ %# #!!!!#????????? | | ????????????###############/###+########????????? | | ???????????????????????# ![#???????????????? | | ???????????????????????# """"" #???????????????? | | ???????????????????????#?"[]!" #???????????????? | | ????????????????????????????" #???????????????? | | ???????????????????????#????" " #???????????????? | +----------------------------------------------------+ Best States ------------- Heat Dissipation 28 Energy Generation 14 Energy Capacity 265 Matter Stores 300 Matter Capacity 300 Sight Range 16 Terrain Scan Range 14 Terrain Scan Density 10 Armor Coverage 150 Evasion (%) 55 Recoil Reduction 2 Item Schematics ----------------- Hacking Suite | -9/Materials | Scanalyzed VTOL Module | -9/Materials | Scanalyzed Robot Schematics ------------------ None Fabricated ------------ Nothing Repaired ---------- Hvy. Assault Rifle | 27% | -9/Storage Alien Tech Used ----------------- None Achievements -------------- None Challenges ------------ None Game ------ Seed PortableMagneticPod Manual? 0 Play Time 00:27:53 Cumulative 32.0 hours Start 2025.09.14 @ 15:44:10 End 2025.09.14 @ 16:09:04 Sessions 1 Manual Loads 0 Difficulty Rogue Special Mode None Game No. 65 Rogue 65 Adventurer 0 Explorer 0 Win Type - Total 1 Types 1/0/0/0/0/0/0/0/0/0 Lore% 22 Gallery% 31 Achievement% 31 Wizard Run 0 Options --------- Layout 1 ASCII 0 Keyboard 0 Movement Mouse Keybinds 0 Fullscreen 1 Font 32/SmallcapsGlow Map View 50x35 Zoom Use 0% Tactical HUD 1 Map Filters NONE Filters NONE Steam 1 RUN: 26e000c8-271f-43aa-81ef-b0a72c541d96